bitfinex-derivatives/quotes_ETHF0:USTF0_20230106
["timestamp","ask_amount","ask_price","bid_price","bid_amount"]
[1672996537688,3.2078,1247.4,1247.2,1.20149892]
[1672996537999,2.99555873,1247.3,1247.2,1.20149892]
[1672996538425,2.99586254,1247.3,1247.2,1.20149892]
[1672996538842,6.79094364,1247.4,1247.2,1.20149892]
[1672996539257,3.2078,1247.3,1247.2,1.20149892]
[1672996539791,3.58314364,1247.4,1247.2,1.20149892]
[1672996540100,3.2078,1247.3,1247.2,1.20149892]
[1672996540416,3.58314364,1247.4,1247.2,1.20149892]
[1672996540629,3.2078,1247.3,1247.2,1.20149892]
[1672996540831,3.58314364,1247.4,1247.2,1.20149892]
[1672996541038,3.2078,1247.3,1247.2,1.20149892]
[1672996542620,6.79094364,1247.3,1247.2,1.20149892]
[1672996543984,3.58314364,1247.3,1247.2,1.20149892]
[1672996544196,6.79094364,1247.3,1247.2,1.20149892]
[1672996545248,3.2078,1247.3,1247.2,1.20149892]
[1672996550189,3.58314364,1247.4,1247.2,1.20149892]
[1672996550926,3.2078,1247.3,1247.2,1.20149892]
[1672996553448,3.58314364,1247.4,1247.2,1.20149892]
[1672996553662,3.2078,1247.3,1247.2,1.20149892]
[1672996555650,3.58314364,1247.4,1247.2,1.20149892]
[1672996555858,3.2078,1247.3,1247.2,1.20149892]
[1672996557333,3.58314364,1247.4,1247.2,1.20149892]
[1672996557548,3.2078,1247.3,1247.2,1.20149892]
[1672996557764,3.58314364,1247.4,1247.2,1.20149892]
[1672996558173,3.2078,1247.3,1247.2,1.20149892]
[1672996561025,3.58314364,1247.4,1247.2,1.20149892]
[1672996561230,3.2078,1247.3,1247.2,1.20149892]
[1672996563026,3.58314364,1247.4,1247.2,1.20149892]
[1672996563337,3.2078,1247.3,1247.2,1.20149892]
[1672996563963,3.2078,1247.3,1247.1,1.20149892]
[1672996564173,2.99479623,1247.2,1247.1,1.20170425]
[1672996567542,6.20259623,1247.2,1247.1,1.20170425]
[1672996567848,2.99479623,1247.2,1247.1,1.20170425]
[1672996569326,6.20259623,1247.2,1247.1,1.20170425]
[1672996569752,6.20259623,1247.2,1247.0,3.82462375]
[1672996570593,2.99479623,1247.2,1247.0,6.82920352]
[1672996571014,6.20259623,1247.2,1247.0,6.82920352]
[1672996571650,6.20259623,1247.2,1247.0,5.40779598]
[1672996571861,6.20259623,1247.2,1247.0,6.82917317]
[1672996572809,2.99479623,1247.2,1247.0,6.82917317]
[1672996573015,6.20259623,1247.2,1247.0,6.82917317]
[1672996573436,2.99479623,1247.2,1247.0,6.82917317]
[1672996573757,2.99479623,1247.2,1247.1,2.40321621]
[1672996574076,6.20259623,1247.2,1247.1,4.20690627]
[1672996574283,6.20259623,1247.2,1247.1,3.82458538]
[1672996574496,6.20259623,1247.2,1247.1,2.40321621]
[1672996575441,2.99479623,1247.2,1247.1,2.40321621]
[1672996585116,6.20259623,1247.2,1247.1,2.40321621]
[1672996585958,2.99479623,1247.2,1247.1,2.40321621]
[1672996586282,6.20259623,1247.2,1247.1,2.40321621]
[1672996587063,2.99479623,1247.2,1247.1,2.40321621]
[1672996587229,6.20259623,1247.2,1247.1,2.40321621]
[1672996591852,2.99479623,1247.2,1247.1,2.40321621]
[1672996607390,2.99479623,1247.2,1247.1,4.20717322]
[1672996608971,2.99479623,1247.2,1247.1,2.40321621]
[1672996609709,6.20259623,1247.2,1247.1,2.40321621]
[1672996610448,2.99479623,1247.2,1247.1,2.40321621]
[1672996610974,6.20259623,1247.2,1247.1,4.2074154]
[1672996611911,2.99479623,1247.2,1247.1,4.2074154]
[1672996612549,6.20259623,1247.2,1247.1,4.2074154]
[1672996614015,2.99479623,1247.2,1247.1,4.2074154]
[1672996614220,6.20259623,1247.2,1247.1,4.2074154]
[1672996617038,2.99479623,1247.2,1247.1,4.2074154]
[1672996617250,6.20259623,1247.2,1247.1,4.2074154]
[1672996617876,6.20259623,1247.2,1247.1,2.40321621]
[1672996618090,2.99479623,1247.2,1247.1,2.40321621]
[1672996618405,6.20259623,1247.2,1247.1,2.40321621]
[1672996618818,2.99479623,1247.2,1247.1,2.40321621]
[1672996619451,6.20259623,1247.2,1247.1,4.20719154]
[1672996620704,3.2078,1247.2,1247.1,1.80397533]
[1672996621125,3.2078,1247.2,1247.1,2.99915441]
[1672996621338,3.2078,1247.2,1247.1,1.79645114]
[1672996621555,6.20549075,1247.2,1247.1,2.40321621]
[1672996622923,6.20549075,1247.2,1247.0,5.40779598]
[1672996623238,6.20549075,1247.2,1247.1,2.40321621]
[1672996625341,2.99769075,1247.2,1247.1,2.40321621]
[1672996625540,6.20549075,1247.2,1247.1,2.40321621]
[1672996625754,2.99769075,1247.2,1247.1,2.40321621]
[1672996626069,6.20549075,1247.2,1247.1,2.40321621]
[1672996626492,2.99769075,1247.2,1247.1,2.40321621]
[1672996626803,6.20549075,1247.2,1247.1,2.40321621]
[1672996629120,2.99769075,1247.2,1247.0,5.40779598]
[1672996629330,2.99769075,1247.2,1247.1,2.40321621]
[1672996629331,6.20549075,1247.2,1247.1,2.40321621]
[1672996629643,2.99769075,1247.2,1247.1,2.40321621]
[1672996629852,6.20549075,1247.2,1247.1,2.40321621]
[1672996630063,6.20549075,1247.2,1247.0,5.40779598]
[1672996630263,6.20549075,1247.2,1247.0,2.40321621]
[1672996630264,2.99769075,1247.1,1247.0,2.40321621]
[1672996630805,6.20549075,1247.2,1247.0,5.40779598]
[1672996631328,6.20549075,1247.2,1247.0,2.40321621]
[1672996631643,6.20549075,1247.2,1247.0,5.40779598]
[1672996633216,6.20549075,1247.2,1247.1,2.40321621]
[1672996633641,2.99769075,1247.2,1247.1,2.40321621]
[1672996633955,6.20549075,1247.2,1247.1,2.40321621]
[1672996634164,2.99769075,1247.2,1247.1,2.40321621]
[1672996634797,6.20549075,1247.2,1247.1,2.40321621]
[1672996637846,2.99769075,1247.2,1247.1,2.40321621]
[1672996638053,6.20549075,1247.2,1247.1,2.40321621]
[1672996642574,2.99769075,1247.2,1247.1,2.40321621]
[1672996646147,6.20549075,1247.2,1247.1,2.40321621]
[1672996646889,2.99769075,1247.2,1247.1,2.40321621]
[1672996647623,6.20549075,1247.2,1247.1,2.40321621]
[1672996649725,2.99769075,1247.2,1247.1,2.40321621]
[1672996661286,6.20549075,1247.2,1247.1,2.40321621]
[1672996661497,2.99769075,1247.2,1247.1,2.40321621]
[1672996661810,6.20549075,1247.2,1247.1,2.40321621]
[1672996662332,2.99769075,1247.2,1247.1,2.40321621]
[1672996662752,2.99769075,1247.2,1247.1,6.829175]
[1672996665175,6.20549075,1247.2,1247.1,3.82459523]
[1672996665385,6.20549075,1247.2,1247.1,2.40321621]
[1672996666122,2.99769075,1247.2,1247.1,2.40321621]
[1672996666643,2.9977482,1247.2,1247.0,13.41579598]
[1672996669172,2.9977482,1247.1,1247.0,10.41121621]
[1672996669487,2.9977482,1247.1,1247.0,11.83263699]
[1672996670222,6.2055482,1247.1,1247.0,3.82463699]
[1672996670428,6.2055482,1247.1,1247.0,2.40321621]
[1672996672957,2.9977482,1247.2,1247.0,3.82461714]
[1672996673167,2.9977482,1247.2,1247.0,6.82919691]
[1672996673378,2.9977482,1247.2,1247.0,2.40321621]
[1672996673580,2.9977482,1247.2,1247.0,3.82461314]
[1672996673787,6.2055482,1247.2,1247.0,3.82461314]
[1672996675271,3.2078,1247.2,1247.1,1.20234098]
[1672996676641,2.99703283,1247.2,1247.1,2.40321621]
[1672996676848,2.99703283,1247.2,1247.1,3.82452481]
[1672996677056,2.99703283,1247.2,1247.1,2.40321621]
[1672996677262,2.99703283,1247.2,1247.1,3.82453182]
[1672996681997,6.20483283,1247.3,1247.1,3.82453182]
[1672996682199,3.2078,1247.3,1247.2,3.00537357]
[1672996682517,3.2078,1247.3,1247.2,1.20214943]
[1672996682832,6.79094364,1247.3,1247.2,1.20214943]
[1672996684096,3.58314364,1247.3,1247.2,1.20214943]
[1672996684517,6.79094364,1247.3,1247.2,1.20214943]
[1672996684832,6.79094364,1247.3,1247.1,3.00537357]
[1672996685045,6.79094364,1247.3,1247.2,1.20214943]
[1672996685674,3.58314364,1247.3,1247.2,1.20214943]
[1672996686306,6.79094364,1247.3,1247.2,1.20214943]
[1672996686519,3.58314364,1247.3,1247.2,1.20214943]
[1672996686830,6.79094364,1247.3,1247.2,1.20214943]
[1672996687354,6.79094364,1247.3,1247.1,3.00537357]
[1672996687559,6.2047847,1247.2,1247.1,3.00537357]
[1672996687772,6.2047847,1247.2,1247.1,1.80322414]
[1672996688722,2.9969847,1247.2,1247.1,1.80322414]
[1672996688926,6.2047847,1247.2,1247.1,1.80322414]
[1672996690076,2.9969847,1247.2,1247.1,1.80322414]
[1672996690295,6.2047847,1247.2,1247.1,1.80322414]
[1672996691881,2.9969847,1247.2,1247.1,1.80322414]
[1672996692085,6.2047847,1247.2,1247.1,1.80322414]
[1672996693144,2.9969847,1247.2,1247.1,1.80322414]
[1672996698395,6.2047847,1247.2,1247.1,1.80322414]
[1672996698713,2.9969847,1247.2,1247.1,1.80322414]
[1672996698915,6.2047847,1247.2,1247.1,1.80322414]
[1672996699439,2.9969847,1247.2,1247.1,1.80322414]
[1672996699650,6.2047847,1247.2,1247.1,1.80322414]
[1672996700079,2.9969847,1247.2,1247.1,1.80322414]
[1672996701131,6.2047847,1247.2,1247.1,1.80322414]
[1672996701443,3.2078,1247.2,1247.1,3.00546273]
[1672996703239,3.58314364,1247.3,1247.1,3.00546273]
[1672996703451,3.2078,1247.2,1247.1,3.00546273]
[1672996703663,3.58314364,1247.3,1247.1,3.00546273]
[1672996703875,3.2078,1247.2,1247.1,3.00546273]
[1672996704817,3.58314364,1247.3,1247.1,3.00546273]
[1672996705028,3.2078,1247.2,1247.1,3.00546273]
[1672996706813,3.2078,1247.2,1247.1,1.80322414]
[1672996707962,3.2078,1247.2,1247.1,1.20250722]
[1672996708171,6.79094364,1247.2,1247.1,1.20250722]
[1672996709648,3.58314364,1247.2,1247.1,1.20250722]
[1672996709859,6.79094364,1247.2,1247.1,1.20250722]
[1672996710173,3.2078,1247.2,1247.1,1.20250722]
[1672996711224,7.77801013,1247.3,1247.1,1.20250722]
[1672996711538,3.2078,1247.2,1247.1,1.20250722]
[1672996712274,7.77801013,1247.3,1247.1,1.20250722]
[1672996712482,3.2078,1247.2,1247.1,1.20250722]
[1672996713749,7.77801013,1247.3,1247.1,1.20250722]
[1672996713959,3.2078,1247.2,1247.1,1.20250722]
[1672996715225,0.00560338,1247.1,1247.0,3.00573136]
[1672996715438,3.00221782,1247.1,1247.0,1.80322414]
[1672996717113,6.21001782,1247.1,1247.0,1.80322414]
[1672996719006,3.00221782,1247.1,1247.0,1.80322414]
[1672996719218,6.21001782,1247.1,1247.0,1.80322414]
[1672996723005,6.21001782,1247.1,1247.0,4.20644035]
[1672996723426,6.21001782,1247.1,1247.0,2.40321621]
[1672996723950,6.21001782,1247.1,1247.0,4.20646711]
[1672996724587,6.21001782,1247.1,1247.0,2.40321621]
[1672996726372,6.21001782,1247.1,1247.0,4.20646817]
[1672996726802,6.21001782,1247.1,1247.0,2.40321621]
[1672996728052,6.21001782,1247.1,1247.0,4.20650661]
[1672996728264,6.21001782,1247.1,1247.0,2.40321621]
[1672996729100,3.00221782,1247.1,1247.0,2.40321621]
[1672996729617,3.00221782,1247.1,1247.0,4.20652473]
[1672996729832,3.00221782,1247.1,1247.0,2.40321621]
[1672996731522,3.00221782,1247.1,1247.0,4.20661658]
[1672996732255,6.21001782,1247.1,1247.0,4.20661658]
[1672996732459,6.21001782,1247.1,1247.0,1.80340037]
[1672996733092,6.21001782,1247.1,1247.0,4.20661658]
[1672996733832,6.21001782,1247.1,1247.0,2.40321621]
[1672996734142,6.21001782,1247.1,1247.0,4.20664607]
[1672996734359,6.21001782,1247.1,1247.0,1.80342986]
[1672996734566,6.21001782,1247.1,1247.0,4.20664607]
[1672996735192,3.00221782,1247.1,1247.0,4.20664607]
[1672996735411,6.21001782,1247.1,1247.0,4.20664607]
[1672996735830,3.00221782,1247.1,1247.0,4.20664607]
[1672996736041,6.21001782,1247.1,1247.0,4.20664607]
[1672996736258,6.21001782,1247.1,1247.0,1.80342986]
[1672996737104,6.21001782,1247.1,1247.0,4.20664607]
[1672996738681,3.00221782,1247.1,1247.0,4.20664607]
[1672996739091,6.21001782,1247.1,1247.0,4.20664607]
[1672996740357,6.21001782,1247.1,1247.0,1.80342986]
[1672996740568,6.21001782,1247.1,1247.0,4.20664607]
[1672996741506,6.21001782,1247.1,1247.0,1.80342986]
[1672996743821,6.21001782,1247.1,1247.0,4.20664607]
[1672996744035,6.21001782,1247.1,1247.0,3.8247175]
[1672996744983,3.00221782,1247.1,1247.0,3.8247175]
[1672996749088,3.00221782,1247.1,1247.0,1.80400806]
[1672996749510,0.00560338,1247.1,1247.0,1.80400806]
[1672996749716,0.00560338,1247.1,1247.0,1.7974989]
[1672996750133,3.00365809,1247.1,1247.0,1.7974989]
[1672996750978,6.21145809,1247.1,1247.0,1.7974989]
[1672996751400,6.21145809,1247.1,1247.0,4.20071511]
[1672996753502,6.21145809,1247.1,1247.0,2.40321621]
[1672996754444,3.00365809,1247.1,1247.0,2.40321621]
[1672996755076,6.21145809,1247.1,1247.0,2.40321621]
[1672996755285,3.00365809,1247.1,1247.0,2.40321621]
[1672996755495,6.21145809,1247.1,1247.0,2.40321621]
[1672996755811,3.00365809,1247.1,1247.0,2.40321621]
[1672996756023,6.21145809,1247.1,1247.0,2.40321621]
[1672996757069,3.21340338,1247.1,1246.9,2.40321621]
[1672996757278,2.99814745,1247.0,1246.9,3.82475367]
[1672996761806,2.99814745,1247.0,1246.9,2.40321621]
[1672996763178,6.20594745,1247.0,1246.9,2.40321621]
[1672996763807,6.20594745,1247.0,1246.8,5.40779598]
[1672996764122,6.20594745,1247.0,1246.8,6.8293953]
[1672996766222,6.20594745,1247.0,1246.9,2.40321621]
[1672996766854,6.20594745,1247.0,1246.8,5.40779598]
[1672996767057,6.20594745,1247.0,1246.8,6.8293734]
[1672996767269,6.20594745,1247.0,1246.9,1.20217425]
[1672996767907,6.20594745,1247.0,1246.8,2.40321621]
[1672996768119,6.20594745,1247.0,1246.8,3.82482135]
[1672996770432,6.20594745,1247.0,1246.8,6.82940112]
[1672996770747,6.20594745,1247.0,1246.8,5.40779598]
[1672996770960,6.20594745,1247.0,1246.8,6.82936566]
[1672996771692,6.20594745,1247.0,1246.8,2.40321621]
[1672996771903,6.20594745,1247.0,1246.8,6.82938756]
[1672996772216,6.20594745,1247.0,1246.8,3.82480779]
[1672996772427,6.20594745,1247.0,1246.8,3.82480363]
[1672996772633,6.20594745,1247.0,1246.8,6.8293834]
[1672996773476,6.20594745,1247.0,1246.9,2.40321621]
[1672996773689,3.00375083,1247.1,1246.9,10.41121621]
[1672996774418,3.00375083,1247.1,1246.9,13.41579598]
[1672996774625,3.00375083,1247.1,1247.0,1.20183463]
[1672996774846,2.99814745,1247.1,1247.0,1.20187555]
[1672996776002,6.20594745,1247.1,1247.0,1.20187555]
[1672996776314,2.99814745,1247.1,1247.0,1.20187555]
[1672996776524,6.20594745,1247.1,1247.0,1.20187555]
[1672996777883,3.2078,1247.1,1247.0,1.20187555]
[1672996778413,6.20371293,1247.1,1247.0,1.20187555]
[1672996783993,6.20371293,1247.1,1246.9,2.40321621]
[1672996784209,6.20371293,1247.1,1246.9,10.41121621]
[1672996785254,6.20371293,1247.1,1246.9,13.41579598]
[1672996786519,6.20371293,1247.1,1246.9,10.41121621]
[1672996786720,6.20371293,1247.1,1246.9,2.40321621]
[1672996787142,6.20371293,1247.1,1247.0,1.20215168]
[1672996787463,6.20371293,1247.1,1246.9,2.40321621]
[1672996787881,6.20371293,1247.1,1246.9,10.41121621]
[1672996788195,6.20371293,1247.1,1247.0,1.20215284]
[1672996788932,2.99591293,1247.1,1246.9,2.40321621]
[1672996789144,2.99591293,1247.1,1246.9,3.82472717]
[1672996789343,6.20371293,1247.1,1246.9,3.82472717]
[1672996789659,6.20371293,1247.1,1246.9,11.83272717]
[1672996789869,6.20371293,1247.1,1246.9,10.41121621]
[1672996791031,2.99591293,1247.1,1246.9,10.41121621]
[1672996791242,6.20371293,1247.1,1246.9,10.41121621]
[1672996791984,2.99591293,1247.1,1246.9,10.41121621]
[1672996792194,6.20371293,1247.1,1246.9,10.41121621]
[1672996792401,6.20371293,1247.1,1246.9,13.41579598]
[1672996793558,2.99591293,1247.1,1246.9,13.41579598]
[1672996793875,6.20371293,1247.1,1246.9,13.41579598]
[1672996794924,6.20371293,1247.1,1246.9,10.41121621]
[1672996795133,6.20371293,1247.1,1247.0,1.20232732]
[1672996795451,6.20371293,1247.1,1246.9,10.41121621]
[1672996797446,2.99591293,1247.0,1246.9,10.41121621]
[1672996797647,2.99591293,1247.0,1246.9,11.83275573]
[1672996798496,2.99591293,1247.0,1246.9,10.41121621]
[1672996798700,2.99591293,1247.0,1246.9,11.83275199]
[1672996800177,6.20371293,1247.0,1246.9,11.83275199]
[1672996800385,6.20371293,1247.0,1246.9,10.41121621]
[1672996800593,6.20371293,1247.0,1246.9,11.8327633]
[1672996800805,6.20371293,1247.0,1246.9,3.8247633]
[1672996801123,6.20371293,1247.0,1246.9,1.202458]
[1672996801124,3.2078,1247.0,1246.9,1.202458]
[1672996801332,3.2078,1247.0,1246.8,1.202458]
[1672996801537,3.2078,1247.0,1246.7,2.40321621]
[1672996801538,2.99676091,1246.9,1246.7,2.40321621]
[1672996801749,2.99676091,1246.9,1246.7,5.40779598]
[1672996801960,2.99676091,1246.9,1246.7,14.83750738]
[1672996802170,2.99676091,1246.9,1246.8,2.40321621]
[1672996802810,6.20456091,1247.0,1246.8,3.82486286]
[1672996803024,6.20456091,1247.0,1246.8,14.83744263]
[1672996803340,6.20456091,1247.0,1246.8,13.41579598]
[1672996803648,6.20456091,1247.0,1246.8,10.41121621]
[1672996803972,6.20456091,1247.0,1246.9,2.40321621]
[1672996804493,6.20456091,1247.0,1246.8,13.41579598]
[1672996805863,2.99676091,1247.0,1246.8,13.41579598]
[1672996806385,2.99676091,1247.0,1246.8,10.41121621]
[1672996807862,2.99676091,1247.0,1246.8,2.40321621]
[1672996808384,3.2078,1246.9,1246.8,1.20242459]
[1672996808589,3.2078,1246.9,1246.7,1.20242459]
[1672996808796,3.59499676,1246.8,1246.5,1.20242459]
[1672996809002,3.2078,1246.6,1246.5,1.20242459]
[1672996809219,6.19901027,1246.8,1246.5,1.20242459]
[1672996809431,6.19901027,1246.8,1246.6,1.20069979]
[1672996809635,3.2078,1246.8,1246.7,3.00162052]
[1672996809854,2.99121027,1246.9,1246.7,1.80092073]
[1672996810067,6.19901027,1247.0,1246.8,1.20059071]
[1672996810900,6.19901027,1247.0,1246.8,3.00151144]
[1672996811117,3.2078,1247.0,1246.9,1.20059071]
[1672996811316,6.19901027,1247.0,1246.8,3.00151144]
[1672996814694,6.19901027,1247.0,1246.9,1.20059071]
[1672996815112,6.19901027,1247.0,1246.8,3.00151144]
[1672996817223,6.19901027,1247.0,1246.8,1.20059071]
[1672996818060,6.19901027,1247.0,1246.8,1.19305611]
[1672996820793,6.19901027,1247.0,1246.7,1.80092073]
[1672996820794,2.99121027,1246.9,1246.7,1.80092073]
[1672996821423,3.2078,1246.8,1246.6,4.20413694]
[1672996824055,3.2078,1246.8,1246.7,1.80092073]
[1672996827728,3.2078,1246.8,1246.6,4.20413694]
[1672996828140,3.2078,1246.8,1246.6,1.80092073]
[1672996832875,3.2078,1246.8,1246.6,4.20413694]
[1672996833086,3.2078,1246.8,1246.7,1.80092073]
[1672996838228,6.19901027,1246.9,1246.7,1.80092073]
[1672996841913,6.19901027,1246.9,1246.7,4.20413694]
[1672996842123,6.19901027,1246.9,1246.7,1.80092073]
[1672996843175,2.99121027,1246.9,1246.7,1.80092073]
[1672996843377,6.19901027,1246.9,1246.7,1.80092073]
[1672996844332,2.99121027,1246.9,1246.7,1.80092073]
[1672996844535,6.19901027,1246.9,1246.7,1.80092073]
[1672996844750,6.19901027,1246.9,1246.7,4.20413694]
[1672996845171,6.19901027,1246.9,1246.7,1.80092073]
[1672996845911,6.19901027,1246.9,1246.7,4.20413694]
[1672996846220,6.19901027,1246.9,1246.7,1.80092073]
[1672996848737,3.2078,1246.9,1246.8,1.80092073]
[1672996850312,6.20363555,1246.9,1246.8,1.80092073]
[1672996851055,3.2078,1246.9,1246.8,1.80092073]
[1672996851893,6.20367157,1246.9,1246.8,1.80092073]
[1672996852528,3.2078,1246.9,1246.7,4.20413694]
[1672996852739,2.99580427,1246.8,1246.7,1.80092073]
[1672996855473,2.99580427,1246.8,1246.7,4.20413694]
[1672996855679,2.99580427,1246.8,1246.7,2.40321621]
[1672996857457,2.99580427,1246.8,1246.7,3.82499131]
[1672996859977,2.99580427,1246.8,1246.7,4.20748216]
[1672996860191,2.99580427,1246.8,1246.7,1.80426595]
[1672996860614,2.99699369,1246.8,1246.7,4.20748216]
[1672996861878,2.99699369,1246.8,1246.7,3.82498795]
[1672996866408,6.20479369,1246.9,1246.7,3.82498795]
[1672996866612,6.20479369,1246.9,1246.8,1.80413891]
[1672996867033,3.2078,1246.9,1246.8,1.80413891]
[1672996868192,3.59499676,1247.0,1246.8,1.80413891]
[1672996868399,3.2078,1246.9,1246.8,1.80413891]
[1672996871135,3.59499676,1247.0,1246.8,1.80413891]
[1672996871345,3.2078,1246.9,1246.8,1.80413891]
[1672996871765,6.20498144,1246.9,1246.8,4.20735512]
[1672996873229,2.99718144,1246.9,1246.8,4.20735512]
[1672996873652,2.99718144,1246.9,1246.8,2.40321621]
[1672996874071,2.99718144,1246.9,1246.8,4.20730017]
[1672996876712,2.99718144,1246.9,1246.8,1.80408396]
[1672996876921,2.99718144,1246.9,1246.8,4.20730017]
[1672996877968,2.99718144,1246.9,1246.8,1.80408396]
[1672996878179,2.99718144,1246.9,1246.8,4.20730017]
[1672996879651,2.99718144,1246.9,1246.8,1.80408396]
[1672996884696,6.80279676,1247.0,1246.7,9.81208396]
[1672996884906,6.20373981,1246.8,1246.7,9.81208396]
[1672996885117,6.20375375,1246.8,1246.7,1.80408396]
[1672996885327,3.2078,1246.8,1246.6,5.62906434]
[1672996885539,0.00764416,1246.7,1246.6,3.22584813]
[1672996885856,3.00352118,1246.7,1246.6,5.62888064]
[1672996886271,3.00352118,1246.7,1246.6,3.2256724]
[1672996888475,3.00252317,1246.7,1246.6,3.2256724]
[1672996888903,3.00252317,1246.7,1246.6,1.42176417]
[1672996889114,3.00252317,1246.7,1246.6,3.2256724]
[1672996890899,0.00764416,1246.7,1246.6,3.2256724]
[1672996891944,3.00252317,1246.7,1246.6,3.2256724]
[1672996892149,0.00764416,1246.7,1246.6,3.2256724]
[1672996894608,3.21544416,1246.7,1246.6,3.2256724]
[1672996897454,3.21544416,1246.7,1246.6,3.22364542]
[1672996898705,6.21032317,1246.7,1246.6,1.41973719]
[1672996899436,3.21544416,1246.7,1246.6,1.41973719]
[1672996900072,3.21544416,1246.7,1246.6,3.22364542]
[1672996900711,6.21032317,1246.7,1246.6,1.41973719]
[1672996902178,3.21544416,1246.7,1246.6,1.41973719]
[1672996903127,3.21544416,1246.7,1246.6,3.22364542]
[1672996904373,2.99487901,1246.8,1246.6,3.22364542]
[1672996904374,6.20267901,1246.9,1246.6,13.25272998]
[1672996904585,6.20267901,1246.9,1246.7,1.80114657]
[1672996909301,2.99487901,1246.8,1246.6,3.22088376]
[1672996910988,2.99487901,1246.8,1246.6,5.62409997]
[1672996911198,2.99487901,1246.8,1246.6,3.22088376]
[1672996911411,3.2078,1246.7,1246.6,3.22088376]
[1672996912250,3.2078,1246.7,1246.6,1.41973719]
[1672996912667,6.20267901,1246.7,1246.6,1.41973719]
[1672996916978,3.2078,1246.7,1246.6,1.41973719]
[1672996917191,6.19934086,1246.7,1246.6,1.41973719]
[1672996918660,3.2078,1246.7,1246.6,1.41973719]
[1672996919190,6.19905805,1246.7,1246.6,1.41973719]
[1672996919400,3.2078,1246.7,1246.6,1.41973719]
[1672996920440,6.80279676,1246.7,1246.6,1.41973719]
[1672996920655,3.2078,1246.7,1246.6,1.41973719]
[1672996925391,6.80279676,1246.7,1246.6,1.41973719]
[1672996926233,3.2078,1246.7,1246.6,1.41973719]
[1672996929485,6.80279676,1246.7,1246.6,1.41973719]
[1672996930968,3.59499676,1246.7,1246.6,1.41973719]
[1672996931180,6.80279676,1246.7,1246.6,1.41973719]
[1672996932543,14.81079676,1246.7,1246.6,1.41973719]
[1672996937897,3.2078,1246.7,1246.6,1.41973719]
[1672996938107,6.19725989,1246.7,1246.6,1.41973719]
[1672996940321,3.2078,1246.7,1246.6,1.41973719]
[1672996940527,6.1972264,1246.7,1246.6,1.41973719]
[1672996942531,3.2078,1246.7,1246.6,1.41973719]
[1672996943161,6.19715423,1246.7,1246.6,1.41973719]
[1672996943371,3.2078,1246.7,1246.6,1.41973719]
[1672996944004,6.19614671,1246.7,1246.6,1.41973719]
[1672996944320,3.2078,1246.7,1246.6,1.41973719]
[1672996944531,6.19629831,1246.7,1246.6,1.41973719]
[1672996944741,3.2078,1246.7,1246.6,1.41973719]
[1672996945894,6.19696175,1246.7,1246.6,1.41973719]
[1672996946634,3.2078,1246.7,1246.6,1.41973719]
[1672996947465,11.60299676,1246.8,1246.6,1.41973719]
[1672996947789,3.2078,1246.7,1246.6,1.41973719]
[1672996948000,6.19698066,1246.7,1246.6,1.41973719]
[1672996948627,3.2078,1246.7,1246.6,1.41973719]
[1672996949050,6.19830745,1246.7,1246.6,1.41973719]
[1672996949262,6.19830745,1246.7,1246.6,2.6200548]
[1672996953777,6.1960885,1246.7,1246.6,2.6200548]
[1672996954501,6.19830745,1246.7,1246.6,2.6200548]
[1672996954709,3.2078,1246.7,1246.6,2.6200548]
[1672996957137,3.2078,1246.7,1246.6,1.41973719]
[1672996957347,3.2078,1246.7,1246.6,2.6200548]
[1672996958190,6.20008284,1246.7,1246.6,2.6200548]
[1672996963018,6.20008284,1246.7,1246.6,4.42120137]
[1672996963761,2.99228284,1246.8,1246.6,5.62409997]
[1672996963961,2.99228284,1246.8,1246.7,3.00443307]
[1672996964492,2.99228284,1246.8,1246.7,1.80265984]
[1672996964905,6.20008284,1246.9,1246.7,3.00387573]
[1672996965330,6.20008284,1246.9,1246.8,1.20121589]
[1672996965535,6.20008284,1246.9,1246.7,3.00387573]
[1672996967220,6.20008284,1246.9,1246.7,1.20121589]
[1672996970160,6.20008284,1246.9,1246.7,3.00387573]
[1672996970472,6.20008284,1246.9,1246.7,1.20121589]
[1672996971105,6.20008284,1246.9,1246.7,3.00387573]
[1672996974575,8.59035993,1246.9,1246.7,0.50387573]
[1672996977518,5.59807709,1246.9,1246.7,0.50387573]
[1672996979202,5.59807709,1246.9,1246.7,8.51187573]
[1672996979729,2.39027709,1246.9,1246.7,8.51187573]
[1672996980786,5.38255993,1246.9,1246.7,8.51187573]
[1672996982035,2.39027709,1246.9,1246.7,8.51187573]
[1672996986663,2.39027709,1246.9,1246.7,10.91509194]
[1672996986874,2.39027709,1246.9,1246.7,10.41121621]
[1672996987183,8.59035993,1247.0,1246.7,10.41121621]
[1672996987392,5.59807709,1247.0,1246.8,3.2078]
[1672996987711,2.39027709,1247.0,1246.8,5.61101621]
[1672996988339,2.39027709,1247.0,1246.8,13.61901621]
[1672996988549,5.38255993,1247.1,1246.8,13.61901621]
[1672996988976,2.39027709,1247.1,1246.8,13.61901621]
[1672996989180,5.38255993,1247.1,1246.8,13.61901621]
[1672996989385,2.39027709,1247.1,1246.8,13.61901621]
[1672996989599,2.39027709,1247.1,1246.9,1.1814]
[1672996989810,2.39027709,1247.2,1247.0,11.2158]
[1672996990856,2.39027709,1247.2,1247.0,8.008]
[1672996991287,2.39027709,1247.2,1246.9,11.59261621]
[1672996991911,2.39027709,1247.2,1247.0,11.2158]
[1672996992760,5.38255993,1247.3,1247.0,11.2158]
[1672996994977,5.38255993,1247.3,1247.0,8.008]
[1672996995175,2.39027709,1247.2,1247.0,8.008]
[1672996996444,2.39027709,1247.2,1246.9,9.1894]
[1672997000537,5.59807709,1247.2,1246.9,9.1894]
[1672997002221,2.39027709,1247.2,1246.9,12.3972]
[1672997004645,2.39027709,1247.2,1246.9,14.80041621]
[1672997006952,8.59035993,1247.3,1246.9,14.80041621]
[1672997007584,5.38255993,1247.3,1247.0,3.2078]
[1672997007789,5.38255993,1247.3,1247.0,11.2158]
[1672997008644,2.39027709,1247.2,1247.0,11.2158]
[1672997009378,5.59807709,1247.2,1247.0,11.2158]
[1672997010430,8.59035993,1247.2,1246.9,9.1894]
[1672997012218,8.59035993,1247.2,1246.9,8.008]
[1672997012532,5.59807709,1247.2,1246.9,8.008]
[1672997012733,8.59035993,1247.2,1246.9,8.008]
[1672997012948,5.59807709,1247.2,1246.9,10.41121621]
[1672997013369,8.59035993,1247.2,1246.9,10.41121621]
[1672997013689,8.59035993,1247.2,1246.9,8.008]
[1672997014635,2.39027709,1247.1,1246.9,8.008]
[1672997014845,8.59035993,1247.2,1246.9,10.41121621]
[1672997015370,5.38255993,1247.2,1246.9,10.41121621]
[1672997015580,8.59035993,1247.2,1246.9,10.41121621]
[1672997015791,2.39027709,1247.1,1246.9,10.41121621]
[1672997016420,2.39027709,1247.1,1246.9,8.008]
[1672997016626,2.39027709,1247.1,1246.9,10.41121621]
[1672997024825,5.38255993,1247.1,1246.9,13.41579598]
[1672997025034,2.39027709,1247.1,1246.9,13.41579598]
[1672997025665,2.39027709,1247.1,1246.9,16.62359598]
[1672997026729,2.99228284,1247.1,1247.0,2.40321621]
[1672997030822,2.99228284,1247.1,1246.9,10.41121621]